bitfinex-derivatives/quotes_SOLF0:USTF0_20250127
["timestamp","ask_amount","ask_price","bid_price","bid_amount"]
[1737966072325,4.4084,226.94,226.8,4.411]
[1737966072525,1.3226,226.96,226.81,37.0928807]
[1737966072921,0.02921137,226.91,226.86,0.02867827]
[1737966074828,4.4093,226.9,226.86,0.02867827]
[1737966075128,0.02921137,226.91,226.76,5.7709]
[1737966075129,0.02921137,226.91,226.76,1.359]
[1737966075334,4.4099,226.87,226.76,1.359]
[1737966075633,1.3226,226.96,226.76,38.4518807]
[1737966075824,1.3226,226.96,226.85,4.4101]
[1737966076132,1.3226,226.96,226.84,37.0928807]
[1737966076331,0.02867312,226.93,226.88,0.02964802]
[1737966077123,191.16003,227.03,226.88,37.12252872]
[1737966077327,0.16003,227.03,226.88,37.12252872]
[1737966077527,0.16003,227.03,226.89,1.3738]
[1737966078028,4.56673,227.03,226.89,1.3738]
[1737966078227,4.56673,227.03,226.92,4.4088]
[1737966078426,0.03227996,226.98,226.94,0.03391789]
[1737966079535,0.03227996,226.98,226.96,4.4079]
[1737966079731,0.16003,227.03,226.96,37.0928807]
[1737966080224,0.16003,227.03,226.94,0.03391789]
[1737966080431,0.16003,227.03,226.96,37.0928807]
[1737966080630,0.16003,227.03,227.0,4.4071]
[1737966081031,0.16003,227.03,227.0,41.4999807]
[1737966081232,4.4045,227.14,227.02,4.4068]
[1737966081426,37.0928807,227.24,227.0,37.0928807]
[1737966081634,1.3792,227.25,227.04,37.0928807]
[1737966082034,1.3792,227.25,227.08,37.0928807]
[1737966082434,4.4045,227.14,227.04,37.0928807]
[1737966082634,0.03036202,227.19,227.04,37.0928807]
[1737966082931,4.4049,227.12,227.0,41.4999807]
[1737966083234,37.0928807,227.2,227.03,0.03312856]
[1737966083438,0.02909907,227.08,227.03,0.03312856]
[1737966083634,37.0928807,227.16,226.93,4.4086]
[1737966083940,0.03051551,227.08,227.03,0.03145228]
[1737966084336,4.151,227.11,226.96,37.0928807]
[1737966084634,0.0303556,227.08,227.03,0.02970497]
[1737966085142,0.0303556,227.08,226.89,5.783]
[1737966085143,4.4075,226.99,226.89,5.783]
[1737966085340,37.1232363,227.08,226.89,5.783]
[1737966085341,37.1232363,227.08,226.89,1.3738]
[1737966085538,37.0928807,227.04,226.84,37.0928807]
[1737966085738,37.0928807,227.04,226.8,37.0928807]
[1737966086041,37.0928807,227.04,226.84,37.0928807]
[1737966086240,4.4081,226.96,226.86,4.4099]
[1737966086433,0.03319883,226.94,226.9,0.02865224]
[1737966086838,191.0,227.07,226.88,37.0928807]
[1737966087136,4.151,227.11,226.92,37.0928807]
[1737966087335,4.151,227.11,226.93,1.3523]
[1737966087946,4.151,227.11,226.88,37.0928807]
[1737966088239,37.0928807,227.08,226.88,37.0928807]
[1737966088542,0.03298682,227.02,226.97,0.02867544]
[1737966088741,4.4074,226.99,226.97,0.02867544]
[1737966089143,0.03298682,227.02,226.97,0.02867544]
[1737966089345,4.4072,227.0,226.97,0.02867544]
[1737966089544,0.03298682,227.02,226.82,1.4181]
[1737966089943,37.0928807,227.0,226.82,1.4181]
[1737966090146,37.0928807,226.96,226.72,37.0928807]
[1737966090440,1.4531,226.95,226.69,3.1997]
[1737966090647,1.4531,226.95,226.8,37.0928807]
[1737966090848,0.02803673,226.86,226.84,4.4103]
[1737966091043,0.02803673,226.86,226.84,41.5031807]
[1737966091246,192.3425,226.99,226.84,37.0928807]
[1737966091444,0.02993477,226.87,226.84,37.0928807]
[1737966091844,192.3425,226.99,226.88,4.4095]
[1737966092148,37.0928807,227.09,226.88,37.0928807]
[1737966092345,0.03155779,226.96,226.88,37.0928807]
[1737966092550,4.4079,226.97,226.84,38.5151807]
[1737966092746,0.02851951,226.94,226.84,38.5151807]
[1737966092949,0.02851951,226.94,226.88,37.0928807]
[1737966093348,0.02851951,226.94,226.84,1.4223]
[1737966093349,0.02851951,226.94,226.92,37.0928807]
[1737966093550,1.3922,227.08,226.95,4.4081]
[1737966093750,1.3922,227.08,226.92,37.0928807]
[1737966094654,0.03281769,227.02,226.98,0.02925252]
[1737966096051,0.03281769,227.02,226.84,38.9379807]
[1737966096455,1.3922,227.08,226.88,37.0928807]
[1737966096655,4.4068,227.02,226.91,4.4089]
[1737966096955,1.3922,227.08,226.88,37.0928807]
[1737966097356,0.02814969,226.97,226.93,0.0336127]
[1737966097659,37.0928807,227.05,226.84,38.9379807]
[1737966097958,0.03052515,226.97,226.93,0.03045875]
[1737966098857,37.0928807,226.96,226.76,37.0928807]
[1737966099058,1.4152,226.95,226.72,38.4315807]
[1737966099254,37.0928807,226.92,226.72,1.3387]
[1737966099459,4.4114,226.79,226.69,95.56274622]
[1737966099752,37.0928807,226.88,226.69,95.56274622]
[1737966099957,0.03239949,226.76,226.72,0.02984578]
[1737966100158,4.4106,226.83,226.7,4.413]
[1737966100360,37.0928807,226.88,226.67,37.0928807]
[1737966100558,0.0289571,226.76,226.72,0.03201761]
[1737966100758,0.0289571,226.76,226.72,4.44451761]
[1737966100959,191.0,226.91,226.71,37.0928807]
[1737966101161,0.03197087,226.76,226.72,0.03270416]
[1737966101564,191.0,226.91,226.71,37.0928807]
[1737966101761,0.02981112,226.76,226.72,0.03220714]
[1737966102062,191.0,226.91,226.75,37.0928807]
[1737966102364,191.0,226.91,226.72,1.43685466]
[1737966102665,4.4099,226.87,226.73,4.4124]
[1737966103054,4.4099,226.87,226.75,4.4121]
[1737966103462,0.03320004,226.83,226.79,0.0332856]
[1737966104055,0.03320004,226.83,226.79,1.3802856]
[1737966105165,2.7794,226.95,226.82,37.0928807]
[1737966105365,191.0,227.03,226.86,37.0928807]
[1737966105666,1.3642,227.02,226.9,37.0928807]
[1737966105865,1.3642,227.02,226.94,37.0928807]
[1737966106067,1.4263,227.07,226.94,37.0928807]
[1737966106367,0.03143047,227.0,226.96,0.02951729]
[1737966110067,37.12431117,227.0,226.78,37.0928807]
[1737966110367,4.4084,226.95,226.79,0.7662401]
[1737966110564,2.6929,226.99,226.78,37.0928807]
[1737966110761,2.6929,226.99,226.82,37.0928807]
[1737966111064,2.6929,226.99,226.88,0.03001164]
[1737966111065,0.03172684,226.93,226.88,0.03001164]
[1737966113765,0.03172684,226.93,226.74,2.8147]
[1737966113968,37.0928807,226.9,226.65,9.78211851]
[1737966114174,37.0928807,226.9,226.72,0.76739935]
[1737966114370,37.0928807,226.86,226.67,37.0928807]
[1737966114568,37.0928807,226.78,226.62,4.4145]
[1737966115067,4.44421716,226.72,226.68,0.02810645]
[1737966115271,0.03151716,226.72,226.53,30.10876436]
[1737966115464,0.03151716,226.72,226.56,174.43681919]
[1737966115666,37.0928807,226.7,226.56,174.43681919]
[1737966115870,37.0928807,226.66,226.56,174.43681919]
[1737966116071,4.4151,226.6,226.56,172.24921919]
[1737966116273,1.4136,226.59,226.56,172.24921919]
[1737966116665,1.4136,226.59,226.56,172.28278805]
[1737966117066,1.4136,226.59,226.56,143.88644575]
[1737966117267,1.4136,226.59,226.56,0.03356886]
[1737966117567,0.03203111,226.6,226.56,0.03356886]
[1737966118565,4.4155,226.58,226.56,0.03356886]
[1737966119074,37.0928807,226.59,226.56,0.03356886]
[1737966119568,0.03203111,226.6,226.56,0.03356886]
[1737966120070,292.0,226.77,226.59,37.0928807]
[1737966120272,191.0,226.77,226.65,4.4139]
[1737966120473,191.0,226.77,226.55,37.0928807]
[1737966120771,4.4131,226.7,226.55,37.0928807]
[1737966120967,191.0,226.76,226.59,37.0928807]
[1737966121168,51.94276779,230.0,226.63,37.0928807]
[1737966121169,37.0928807,226.86,226.63,37.0928807]
[1737966121367,191.0,226.85,226.63,37.0928807]
[1737966121568,191.0,226.85,226.67,37.0928807]
[1737966121770,191.0,226.85,226.63,37.0928807]
[1737966121970,37.0928807,226.83,226.63,37.0928807]
[1737966122174,37.0928807,226.79,226.59,37.0928807]
[1737966122473,0.03015402,226.72,226.67,0.03292645]
[1737966122875,292.0,226.77,226.59,37.0928807]
[1737966123079,0.03312566,226.72,226.67,0.02920634]
[1737966124379,0.03312566,226.72,226.67,37.12208704]
[1737966124577,191.0,226.9,226.71,37.0928807]
[1737966124774,191.0,226.9,226.79,4.4112]
[1737966125075,191.0,226.9,226.75,37.0928807]
[1737966125266,191.0,226.9,226.79,4.4112]
[1737966125470,191.0,226.9,226.75,37.0928807]
[1737966125668,37.0928807,226.89,226.68,39.8465807]
[1737966125871,0.03267772,226.87,226.82,0.03047513]
[1737966126075,191.0,226.9,226.72,37.0928807]
[1737966126275,191.0,226.9,226.82,0.03029836]
[1737966126476,0.03384837,226.87,226.82,0.03029836]
[1737966127072,4.4103,226.84,226.82,0.03029836]
[1737966127877,4.4116,226.78,226.68,39.8465807]
[1737966128079,37.0928807,226.81,226.68,2.7537]
[1737966128277,191.0,226.8,226.6,4.4149]
[1737966128472,37.0928807,226.77,226.58,2.6543]
[1737966128676,191.0,226.79,226.6,37.0928807]
[1737966128974,191.0,226.79,226.58,2.6543]
[1737966128975,191.0,226.79,226.64,37.0928807]
[1737966129175,0.03043705,226.72,226.67,0.03070149]
[1737966131173,4.4132,226.7,226.67,0.03070149]
[1737966131379,0.03043705,226.72,226.67,0.03070149]
[1737966132279,4.44313705,226.72,226.67,0.03070149]
[1737966132480,0.03043705,226.72,226.67,0.03070149]
[1737966132774,0.03043705,226.72,226.67,37.12358219]
[1737966133174,0.03043705,226.72,226.67,0.03070149]
[1737966133979,4.4133,226.69,226.67,0.03070149]
[1737966134679,4.413,226.71,226.67,0.03070149]
[1737966134977,0.03043705,226.72,226.67,0.03070149]
[1737966136173,0.03043705,226.72,226.68,4.4134]
[1737966136381,0.03043705,226.72,226.67,0.03070149]
[1737966136773,191.0,226.91,226.7,37.0928807]
[1737966137081,191.0,226.91,226.74,37.0928807]
[1737966137275,191.0,226.91,226.78,37.0928807]
[1737966137479,37.0928807,227.01,226.78,37.0928807]
[1737966137876,0.03191543,226.92,226.87,0.0289935]
[1737966138277,0.03191543,226.92,226.78,37.0928807]
[1737966138476,37.0928807,227.01,226.87,0.03115547]
[1737966138676,191.0,227.0,226.78,41.5043807]
[1737966138978,0.02804496,226.96,226.92,5.952e-05]
[1737966139284,191.0,227.0,226.79,37.0928807]
[1737966139583,4.41,226.86,226.75,4.4119]
[1737966139885,4.41,226.86,226.71,2.6828]
[1737966139886,37.0928807,226.86,226.71,2.6828]
[1737966140385,0.03039702,226.83,226.78,0.02975535]
[1737966140889,4.4113,226.8,226.78,0.02975535]
[1737966141482,0.03039702,226.83,226.78,0.02975535]
[1737966142484,0.03039702,226.83,226.79,4.4112]
[1737966142790,191.0,226.93,226.78,37.12263605]
[1737966142991,191.0,226.93,226.78,37.0928807]
[1737966143185,191.0,226.93,226.82,37.0928807]
[1737966143787,4.4092,226.9,226.82,37.0928807]
[1737966144092,0.03041393,226.9,226.85,0.03297168]
[1737966144688,37.12329463,226.9,226.85,0.03297168]
[1737966144895,37.12329463,226.9,226.85,7.168e-05]
[1737966145090,37.0928807,226.86,226.85,7.168e-05]
[1737966145390,37.0928807,226.86,226.71,2.6828]
[1737966146094,37.0928807,226.94,226.74,37.0928807]
[1737966146394,37.0928807,226.94,226.75,1.3275]
[1737966146596,0.03146858,226.86,226.82,0.03215496]
[1737966146791,4.4105,226.83,226.82,0.03215496]
[1737966147188,37.12434928,226.86,226.62,37.0928807]
[1737966147494,0.0641,226.85,226.63,1.3275]
[1737966147689,0.0641,226.85,226.66,37.0928807]
[1737966147890,37.0928807,226.9,226.66,37.0928807]
[1737966148089,37.0928807,226.9,226.63,1.3275]
[1737966148291,37.0928807,226.84,226.63,1.3275]
[1737966148491,4.4121,226.75,226.74,0.03073683]
[1737966149389,0.03059061,226.79,226.74,0.03073683]
[1737966149796,4.4117,226.77,226.74,0.03073683]
[1737966150094,0.03059061,226.79,226.74,0.03073683]
[1737966150494,4.4119,226.76,226.74,0.03073683]
[1737966150797,37.0928807,226.77,226.59,2.8811]
[1737966151494,37.0928807,226.68,226.48,37.0928807]
[1737966151697,37.0928807,226.68,226.49,1.3236]
[1737966152092,0.0278706,226.61,226.56,0.02783909]
[1737966152298,4.4156,226.57,226.56,0.02783909]
[1737966152495,4.4156,226.57,226.56,3.909e-05]
[1737966153291,4.4173,226.49,226.36,41.1091807]
[1737966153496,4.4173,226.49,226.39,4.419]
[1737966153697,37.0928807,226.55,226.36,4.0163]
[1737966153897,37.0928807,226.51,226.36,2.6927]
[1737966154100,37.0928807,226.51,226.41,215.99592559]
[1737966154101,41.5112807,226.43,226.41,215.99592559]
[1737966154405,37.0928807,226.43,226.29,1.3236]
[1737966154598,4.4185,226.42,226.4,0.0280419]
[1737966154799,4.4185,226.42,226.4,4.19e-05]
[1737966155102,4.4184,226.43,226.3,4.4207]
[1737966155307,4.4184,226.43,226.27,37.0928807]
[1737966155308,37.0928807,226.47,226.27,37.0928807]
[1737966155498,37.0928807,226.47,226.23,37.0928807]
[1737966155699,4.418,226.45,226.23,37.0928807]
[1737966156000,0.03348228,226.37,226.31,37.0928807]
[1737966156200,292.0,226.55,226.35,37.0928807]
[1737966156405,37.0928807,226.6,226.39,37.0928807]
[1737966156607,4.416,226.56,226.41,4.4186]
[1737966156806,37.0928807,226.6,226.36,2.7347]
[1737966157009,37.0928807,226.56,226.36,2.7347]
[1737966157398,0.02851607,226.48,226.44,0.03095081]
[1737966158812,4.4157,226.57,226.44,0.03095081]
[1737966159107,191.0,226.67,226.44,0.03095081]
[1737966159309,191.0,226.67,226.48,37.0928807]
[1737966159509,4.4147,226.62,226.48,37.0928807]
[1737966159708,191.0,226.67,226.44,37.0928807]
[1737966159906,4.4145,226.63,226.53,0.03225047]
[1737966160210,191.0,226.67,226.44,37.0928807]
[1737966160402,0.02920365,226.6,226.56,0.0287467]
[1737966160807,0.02920365,226.6,226.39,37.0928807]
[1737966161005,4.4155,226.58,226.4,1.3996]
[1737966161207,37.0928807,226.65,226.47,37.0928807]
[1737966161712,37.0928807,226.65,226.43,37.0928807]
[1737966162011,37.0928807,226.57,226.4,1.3996]
[1737966162208,4.4166,226.52,226.41,4.4186]
[1737966162513,37.0928807,226.57,226.4,1.3996]
[1737966162912,4.4163,226.54,226.4,1.3996]
[1737966163211,0.03381437,226.51,226.4,1.3996]
[1737966163406,0.03381437,226.51,226.42,4.4184]
[1737966163716,0.03381437,226.51,226.4,1.3996]
[1737966164215,37.0928807,226.49,226.36,2.7347]
[1737966164615,37.0928807,226.49,226.28,1.3745]
[1737966164819,0.02908316,226.45,226.28,1.3745]
[1737966165117,37.0928807,226.49,226.28,1.3745]
[1737966165315,0.03262654,226.39,226.28,1.3745]
[1737966165712,4.45172654,226.39,226.31,4.4206]
[1737966165912,0.03262654,226.39,226.31,4.4206]
[1737966166620,0.03262654,226.39,226.28,1.3745]
[1737966168819,0.03262654,226.39,226.3,37.0928807]
[1737966169320,0.03262654,226.39,226.28,1.3745]
[1737966169615,191.0,226.48,226.32,37.0928807]
[1737966170017,191.0,226.48,226.28,1.3745]
[1737966170412,4.419,226.4,226.28,1.3745]
[1737966170618,191.0,226.48,226.28,1.3745]
[1737966170813,0.03131718,226.36,226.32,0.02867664]
[1737966171221,191.0,226.48,226.28,1.3745]
[1737966171416,0.02942518,226.36,226.32,0.03147607]
[1737966171821,191.0,226.48,226.28,1.3745]
[1737966172021,0.0334759,226.36,226.32,0.03245613]
[1737966172419,191.0,226.48,226.28,1.3745]
[1737966172619,0.02800397,226.36,226.32,0.02820036]
[1737966173021,191.0,226.48,226.28,1.3745]
[1737966173219,0.0329706,226.36,226.32,37.12265928]
[1737966173414,4.4178,226.46,226.36,4.4195]
[1737966173616,37.0928807,226.52,226.32,37.0928807]
[1737966173919,37.0928807,226.52,226.28,38.4673807]
[1737966174518,0.03303396,226.42,226.3,4.4207]
[1737966174819,0.03303396,226.42,226.38,0.03110889]
[1737966175015,4.4192,226.39,226.38,0.03110889]
[1737966175221,37.0928807,226.48,226.28,1.3745]
[1737966175424,0.02991967,226.41,226.36,0.03118662]
[1737966176214,4.4195,226.37,226.36,0.03118662]
[1737966176816,4.44881967,226.41,226.36,0.03118662]
[1737966177322,0.02991967,226.41,226.36,0.03118662]
[1737966180119,4.4193,226.38,226.36,0.03118662]
[1737966180321,0.02991967,226.41,226.36,8.662e-05]
[1737966180521,228.0928807,226.4,226.36,8.662e-05]
[1737966180726,4.4195,226.37,226.36,8.662e-05]
[1737966181923,0.02991967,226.41,226.36,8.662e-05]
[1737966182624,4.4195,226.37,226.36,8.662e-05]
[1737966182924,0.02991967,226.41,226.29,1.3496]
[1737966183333,37.0928807,226.44,226.29,1.3496]
[1737966183629,4.4199,226.35,226.29,1.3496]
[1737966183930,37.0928807,226.44,226.29,1.3496]
[1737966184429,37.0928807,226.44,226.3,0.03317202]
[1737966184630,0.03182049,226.39,226.3,0.03317202]
[1737966184821,0.03182049,226.39,226.29,1.3496]
[1737966185026,0.03182049,226.39,226.32,0.0339461]
[1737966185226,0.03182049,226.39,226.32,37.1268268]
[1737966185922,191.0,226.52,226.32,37.1268268]
[1737966186131,191.0,226.52,226.32,37.0928807]
[1737966186524,4.4177,226.46,226.32,37.0928807]
[1737966186724,191.0,226.52,226.4,37.0928807]
[1737966186930,191.0,226.64,226.41,2.8172]
[1737966187230,0.03013872,226.48,226.41,2.8172]
[1737966187431,191.0,226.64,226.41,2.8172]
[1737966187733,0.03167269,226.47,226.42,0.03227633]
[1737966188134,191.0,226.63,226.41,2.8172]
[1737966188135,37.0928807,226.55,226.41,1.4356]
[1737966188431,37.0928807,226.55,226.42,0.0295524]
[1737966188432,0.03277341,226.47,226.42,0.0295524]
[1737966191035,4.4183,226.43,226.42,0.0295524]
[1737966191230,4.4183,226.43,226.42,5.24e-05]
[1737966193540,4.4181,226.45,226.42,5.24e-05]
[1737966193740,0.03277341,226.47,226.42,5.24e-05]
[1737966196537,4.45037341,226.47,226.42,5.24e-05]
[1737966196943,0.03277341,226.47,226.42,5.24e-05]
[1737966198239,0.03277341,226.47,226.42,4.4183524]
[1737966198436,0.03277341,226.47,226.42,5.24e-05]
[1737966200739,37.0928807,226.63,226.42,5.24e-05]
[1737966201044,191.0,226.64,226.44,37.0928807]
[1737966201244,191.0,226.64,226.37,1.4576]
[1737966201245,191.0,226.64,226.48,37.0928807]
[1737966201443,4.415,226.6,226.49,1.343]
[1737966201645,5.89176584,226.7,226.5,1.4354]
[1737966201846,0.03197431,226.57,226.52,37.12284771]
[1737966202045,197.04496831,226.74,226.56,37.0928807]
[1737966202646,4.4134,226.69,226.59,4.4151]
[1737966202849,197.04496831,226.74,226.56,37.0928807]
[1737966203048,191.0,226.74,226.56,37.0928807]
[1737966203347,0.02899468,226.67,226.63,0.02955357]
[1737966204343,4.4141,226.65,226.63,0.02955357]
[1737966204638,0.02899468,226.67,226.5,1.4354]
[1737966204837,37.0928807,226.69,226.5,1.4354]
[1737966205340,4.4133,226.69,226.58,4.4153]
[1737966205539,191.0,226.74,226.56,37.0928807]
[1737966205737,191.0,226.74,226.61,0.03029837]
[1737966205937,0.0297811,226.66,226.61,0.03029837]
[1737966206142,4.414,226.65,226.61,0.03029837]
[1737966206446,0.0297811,226.66,226.61,0.03029837]
[1737966206844,4.4145,226.63,226.61,0.03029837]
[1737966207646,4.4153,226.59,226.5,2.8407]
[1737966207945,37.0928807,226.69,226.5,2.8407]
[1737966208341,4.4155,226.58,226.51,4.4167]
[1737966208739,37.0928807,226.69,226.5,2.8407]
[1737966208940,3.12,226.72,226.5,2.8407]
[1737966208941,0.03318622,226.57,226.52,0.02807587]
[1737966209144,37.0928807,226.65,226.5,1.4354]
[1737966209350,0.02817933,226.57,226.52,0.03292885]
[1737966211348,0.02817933,226.57,226.52,37.12580955]
[1737966212039,0.02817933,226.57,226.52,0.03292885]
[1737966213451,4.416,226.55,226.52,0.03292885]
[1737966213745,0.02817933,226.57,226.52,0.03292885]
[1737966215047,292.0,226.7,226.52,0.03292885]
[1737966215048,292.0,226.7,226.53,37.0928807]
[1737966215249,4.414,226.65,226.56,4.4158]
[1737966215450,191.0,226.71,226.53,37.0928807]
[1737966215651,4.4146,226.63,226.54,4.416]
[1737966215951,4.4146,226.63,226.53,37.0928807]
[1737966216353,0.03203873,226.6,226.56,0.03234071]
[1737966216848,0.03203873,226.6,226.57,4.4155]
[1737966217052,191.0,226.71,226.57,38.4640807]
[1737966217249,292.0644,226.77,226.57,38.4640807]
[1737966217553,228.0928807,226.81,226.64,4.4142]
[1737966218051,4.4126,226.73,226.64,4.4142]
[1737966218355,0.03378703,226.75,226.7,0.03013508]
[1737966218652,4.4129,226.71,226.7,0.03013508]
[1737966218853,0.03378703,226.75,226.7,0.03013508]
[1737966219053,4.4126,226.73,226.7,0.03013508]
[1737966219250,0.03378703,226.75,226.7,0.03013508]
[1737966219845,4.4129,226.72,226.7,0.03013508]
[1737966220051,0.03378703,226.75,226.7,0.03013508]
[1737966220354,37.0928807,226.73,226.7,3.508e-05]
[1737966220549,4.4129,226.71,226.7,3.508e-05]
[1737966220749,191.0,226.72,226.51,1.4536]
[1737966220950,40.2128807,226.73,226.45,37.0928807]
[1737966220951,37.0928807,226.66,226.45,38.5311807]
[1737966221347,0.088,226.7,226.45,38.5311807]
[1737966221348,37.1808807,226.7,226.45,38.5311807]
[1737966221855,37.0928807,226.66,226.45,38.5311807]
[1737966222047,0.03312948,226.6,226.55,0.0279046]
[1737966222247,4.4158,226.56,226.55,0.0279046]
[1737966222852,37.0928807,226.56,226.44,1.4536]
[1737966223047,37.0928807,226.6,226.44,1.4536]
[1737966223951,37.0928807,226.56,226.44,1.4536]
[1737966224853,4.4165,226.53,226.44,1.4536]
[1737966225060,0.0298706,226.52,226.48,0.03132007]
[1737966225254,37.0928807,226.61,226.44,1.4536]
[1737966225558,0.02978931,226.52,226.48,0.03142308]
[1737966225858,4.4168,226.51,226.48,0.03142308]
[1737966226552,4.417,226.5,226.48,0.03142308]
[1737966226754,0.03015171,226.52,226.48,0.03142308]
[1737966226963,4.44685171,226.52,226.48,0.03142308]
[1737966227156,0.03015171,226.52,226.48,0.03142308]
[1737966227555,4.417,226.5,226.48,0.03142308]
[1737966227854,0.03015171,226.52,226.48,0.03142308]
[1737966228155,4.4171,226.49,226.48,0.03142308]
[1737966228958,0.03015171,226.52,226.38,1.4554]
[1737966229260,22.86767525,226.58,226.38,1.4554]
[1737966229562,4.417,226.5,226.38,1.4554]
[1737966230062,0.03071897,226.46,226.38,1.4554]
[1737966230461,4.4166,226.52,226.41,22.86767525]
[1737966230658,292.0,226.64,226.41,22.86767525]
[1737966230960,4.4152,226.59,226.45,22.86767525]
[1737966231161,191.0,226.65,226.49,22.86767525]
[1737966231361,22.86767525,226.72,226.49,22.86767525]
[1737966231559,0.03304582,226.59,226.55,0.02816894]
[1737966231759,22.86767525,226.72,226.53,22.86767525]
[1737966231959,0.02933462,226.59,226.56,4.4157]
[1737966232160,22.86767525,226.72,226.53,22.86767525]
[1737966232958,22.86767525,226.72,226.49,22.86767525]
[1737966233359,0.03103235,226.63,226.58,0.02955217]
[1737966233664,0.03103235,226.63,226.49,22.86767525]
[1737966233855,0.03103235,226.63,226.58,0.03259208]
[1737966234055,22.86767525,226.64,226.47,3.1]
[1737966234257,0.03075645,226.63,226.47,3.1]
[1737966234464,22.86767525,226.68,226.58,0.03070222]
[1737966234660,0.02991958,226.57,226.53,0.03262128]
[1737966234962,0.03105391,226.57,226.49,22.86767525]
[1737966235162,0.03105391,226.57,226.53,0.0337235]
[1737966237068,8.8246,226.75,226.53,0.0337235]
[1737966237069,22.86767525,226.75,226.53,22.90139875]
[1737966237257,4.4136,226.68,226.59,4.4152]
[1737966237460,22.86767525,226.75,226.54,3.12]
[1737966237859,22.86767525,226.67,226.54,3.12]
[1737966238367,0.03154893,226.63,226.58,0.03318838]
[1737966238966,4.4152,226.59,226.58,0.03318838]
[1737966240066,4.4162,226.54,226.47,1.3778]
[1737966240267,4.4162,226.54,226.47,5.7953]
[1737966240468,4.4162,226.54,226.47,1.3778]
[1737966240670,22.86767525,226.55,226.35,85.7]
[1737966240870,22.86767525,226.55,226.36,2.889]
[1737966241170,0.1498,226.62,226.43,0.02900096]
[1737966241171,0.03217434,226.47,226.43,0.02900096]
[1737966241369,22.86767525,226.59,226.42,4.4185]
[1737966241571,0.02858729,226.47,226.43,0.02894676]
[1737966241771,0.02858729,226.47,226.37,22.86767525]
[1737966241967,0.02936673,226.44,226.4,0.03388072]
[1737966242167,22.86767525,226.59,226.4,22.86767525]
[1737966242469,22.86767525,226.59,226.37,1.3244]
[1737966242670,4.4178,226.46,226.37,1.3244]
[1737966243069,22.86767525,226.55,226.37,1.3244]
[1737966243270,22.86767525,226.51,226.37,1.3244]
[1737966243467,0.03318062,226.48,226.44,0.03015428]
[1737966243671,4.4179,226.45,226.44,0.03015428]
[1737966244575,4.4179,226.45,226.44,5.428e-05]
[1737966245174,0.03318062,226.48,226.44,5.428e-05]
[1737966245773,4.4179,226.45,226.44,5.428e-05]
[1737966246269,4.4201,226.34,226.24,22.86767525]
[1737966246477,22.86767525,226.42,226.2,26.95727525]
[1737966246771,22.86767525,226.38,226.23,4.422]
[1737966246971,4.4203,226.33,226.2,4.0896]
[1737966247171,22.86767525,226.38,226.2,4.0896]
[1737966247376,0.02943591,226.29,226.23,4.4221]
[1737966247576,0.02943591,226.29,226.24,0.02862686]
[1737966250374,4.4215,226.27,226.24,0.02862686]
[1737966250577,0.02943591,226.29,226.24,0.02862686]
[1737966253884,191.2167,226.44,226.24,22.89630211]
[1737966254086,191.2167,226.44,226.24,22.86767525]
[1737966254378,191.0,226.44,226.28,22.86767525]
[1737966254586,191.0,226.44,226.33,22.86767525]
[1737966254787,4.4176,226.47,226.37,4.4193]
[1737966255085,0.03338194,226.41,226.36,0.02933111]
[1737966255478,4.4196,226.37,226.29,1.447]
[1737966255682,0.02963627,226.41,226.36,0.03033803]
[1737966255885,22.86767525,226.46,226.29,1.447]
[1737966256084,0.03362635,226.41,226.36,0.03295641]
[1737966256680,4.45232635,226.41,226.36,0.03295641]
[1737966257282,0.03362635,226.41,226.36,0.03295641]
[1737966257690,0.03362635,226.41,226.32,22.86767525]
[1737966257885,0.03362635,226.41,226.37,4.4194]
[1737966258187,0.03362635,226.41,226.29,1.447]
[1737966258383,4.4191,226.39,226.31,4.4206]
[1737966258587,0.03362635,226.41,226.31,4.4206]
[1737966258984,0.03362635,226.41,226.35,4.4199]
[1737966259180,0.03362635,226.41,226.34,0.03264401]
[1737966260285,191.0,226.54,226.36,22.86767525]
[1737966260484,483.0,226.67,226.37,1.3319]
[1737966260790,22.86767525,226.6,226.37,1.3319]
[1737966261289,4.4185,226.43,226.37,1.3319]
[1737966261789,22.86767525,226.48,226.38,0.03249784]
[1737966261986,0.02906079,226.42,226.38,0.03249784]
[1737966262181,0.02906079,226.42,226.37,1.3319]
[1737966262388,0.02906079,226.42,226.38,0.02864762]
[1737966262587,4.4191,226.39,226.38,0.02864762]